lending/lending_fUSD_20250218
["ID","MTS","AMOUNT","RATE_DAILY","PERIOD"]
[353502949,1739889068848,-500.0,0.00020191,3]
[353502950,1739889068857,-500.0,0.00020191,3]
[353502951,1739889068867,-500.0,0.00020191,3]
[353502952,1739889068876,-500.0,0.00020191,3]
[353502953,1739889068886,-500.0,0.00020191,3]
[353502954,1739889068895,-500.0,0.00020191,3]
[353502955,1739889068904,-500.0,0.00020191,3]
[353502956,1739889068914,-583.36,0.00020191,3]
[353502957,1739889068924,-500.0,0.00020191,3]
[353502958,1739889068933,-500.0,0.00020191,3]
[353502959,1739889068943,-500.0,0.00020191,3]
[353502960,1739889068953,-500.0,0.00020191,3]
[353502961,1739889068963,-500.0,0.00020191,3]
[353502962,1739889068973,-500.0,0.00020191,3]
[353502963,1739889068983,-500.0,0.00020191,3]
[353502964,1739889068993,-500.0,0.00020191,3]
[353502965,1739889069004,-500.0,0.00020191,3]
[353502966,1739889069014,-500.0,0.00020191,3]
[353502967,1739889069024,-608.76,0.00020191,3]
[353502968,1739889069034,-500.0,0.00020191,3]
[353502969,1739889069043,-500.0,0.00020191,3]
[353502970,1739889069053,-500.0,0.00020191,3]
[353502971,1739889069063,-500.0,0.00020191,3]
[353502972,1739889069073,-500.0,0.00020191,3]
[353502973,1739889069083,-500.0,0.00020191,3]
[353502974,1739889069092,-500.0,0.00020191,3]
[353502975,1739889069102,-500.0,0.00020191,3]
[353502976,1739889069112,-500.0,0.00020191,3]
[353502977,1739889069122,-500.0,0.00020191,3]
[353502978,1739889069132,-500.0,0.00020191,3]
[353502979,1739889069142,-191.72,0.00020191,3]
[353502980,1739889069152,-500.0,0.00020191,3]
[353502981,1739889069162,-500.0,0.00020191,3]
[353502982,1739889069172,-500.0,0.00020191,3]
[353502983,1739889069182,-500.0,0.00020191,3]
[353502984,1739889069191,-500.0,0.00020191,3]
[353502985,1739889069201,-500.0,0.00020191,3]
[353502986,1739889069211,-500.0,0.00020191,3]
[353502987,1739889069220,-500.0,0.00020191,3]
[353502988,1739889069230,-262.0,0.00020191,3]
[353502989,1739889069240,-500.0,0.00020191,3]
[353502990,1739889069251,-500.0,0.00020191,3]
[353502991,1739889069261,-500.0,0.00020191,3]
[353502992,1739889069271,-500.0,0.00020191,3]
[353502993,1739889069281,-500.0,0.00020191,3]
[353502994,1739889069291,-587.12,0.00020191,3]
[353502995,1739889069301,-500.0,0.00020191,3]
[353502996,1739889069310,-277.22296877,0.00020191,3]
[353502997,1739889069320,-500.0,0.00020191,3]
[353502998,1739889069329,-500.0,0.00020191,3]
[353502999,1739889069339,-500.0,0.00020191,3]
[353503000,1739889069348,-500.0,0.00020191,3]
[353503001,1739889069358,-500.0,0.00020191,3]
[353503002,1739889069368,-500.0,0.00020191,3]
[353503003,1739889069377,-935.0,0.00020192,2]
[353503004,1739889069386,-634.46,0.00020195,3]
[353503005,1739889069395,-634.46,0.00020195,3]
[353503006,1739889069405,-634.46,0.00020195,3]
[353503007,1739889069414,-634.46,0.00020195,3]
[353503008,1739889069423,-634.46,0.00020195,3]
[353503009,1739889069433,-634.46,0.00020195,3]
[353503010,1739889069442,-634.46,0.00020195,3]
[353503011,1739889069451,-634.46,0.00020195,3]
[353503012,1739889069461,-634.46,0.00020195,3]
[353503013,1739889069471,-634.46,0.00020195,3]
[353503014,1739889069481,-634.46,0.00020195,3]
[353503015,1739889069491,-634.46,0.00020195,3]
[353503016,1739889069502,-634.46,0.00020195,3]
[353503017,1739889069512,-634.46,0.00020195,3]
[353503018,1739889069523,-634.64573024,0.00020195,3]
[353503019,1739889069536,-500.0,0.00020195,3]
[353503020,1739889069548,-500.0,0.00020195,3]
[353503021,1739889069558,-412.38,0.00020195,3]
[353503022,1739889069568,-500.0,0.00020195,3]
[353503023,1739889069579,-500.0,0.00020195,3]
[353503024,1739889069589,-305.18,0.00020195,3]
[353503025,1739889069599,-500.0,0.00020195,3]
[353503026,1739889069608,-500.0,0.00020195,3]
[353503027,1739889069619,-500.0,0.00020195,3]
[353503028,1739889069630,-500.0,0.00020195,3]
[353503029,1739889069639,-163.24,0.00020195,3]
[353503030,1739889069648,-1621446.88036134,0.00020196,40]
[353503031,1739889069862,-504.57485244,0.00019726,3]
[353503032,1739889069871,-500.0,0.00019726,3]
[353503033,1739889069881,-151.0,0.00020196,2]
[353503034,1739889069891,-151.0,0.00020196,2]
[353503035,1739889069901,-258.450649,0.00020196,2]
[353503036,1739889069911,-1134.97449856,0.00020199,40]
[353503037,1739889069930,-500.0,0.0002019,3]
[353503038,1739889069939,-4292.94419862,0.00020199,40]
[353503039,1739889069950,-1002753.07968118,0.00020199,40]
[353503040,1739889070045,-563.72,0.00019726,3]
[353503041,1739889070055,-42.45002993,0.00020162,3]
[353503042,1739889070082,-270.3594501,0.00019726,3]
[353503043,1739889070094,-229.6405499,0.00019726,3]
[353503044,1739889070103,-315.72502712,0.00019726,3]
[353503045,1739889070115,-184.27497288,0.00019726,3]
[353503046,1739889070124,-457.54997007,0.00020162,3]
[353503047,1739889070134,-500.0,0.00020166,3]
[353503048,1739889070143,-500.0,0.00020172,3]
[353503049,1739889070152,-299.59685511,0.00020191,3]
[353503050,1739889070163,-200.40314489,0.00020191,3]
[353503051,1739889070172,-500.0,0.00020191,3]
[353503052,1739889070182,-272.34254763,0.00020191,3]
[353503053,1739889070213,-1.30504045,0.00020191,3]
[353503054,1739889070236,-500.0,0.00020176,3]
[353503055,1739889070245,-226.35241192,0.00020191,3]
[353503056,1739889070255,-500.0,0.00020191,3]
[353503057,1739889070264,-500.0,0.00020191,3]
[353503058,1739889070274,-500.0,0.00020191,3]
[353503059,1739889070283,-500.0,0.00020191,3]
[353503060,1739889070292,-437.86351306,0.00020191,3]
[353503061,1739889070301,-449.23,0.00020191,3]
[353503062,1739889070311,-6676548.21592957,0.00020199,40]
[353503063,1739889070559,-1787.0,0.00016348,2]
[353503064,1739889070568,-500.0,0.00019726,3]
[353503065,1739889070577,-500.0,0.00019726,3]
[353503066,1739889070586,-500.0,0.00019726,3]
[353503067,1739889070596,-500.0,0.00019726,3]
[353503068,1739889070604,-500.0,0.00019726,3]
[353503069,1739889070613,-500.0,0.00019726,3]
[353503070,1739889070624,-500.0,0.00019726,3]
[353503071,1739889070633,-500.0,0.00019726,3]
[353503072,1739889070642,-235.22,0.00019726,3]
[353503073,1739889070652,-500.0,0.00019726,3]
[353503074,1739889070661,-500.0,0.00019726,3]
[353503075,1739889070670,-500.0,0.00019726,3]
[353503076,1739889070679,-500.0,0.00019726,3]
[353503077,1739889070689,-500.0,0.00020166,3]
[353503078,1739889070698,-501.46880755,0.00020172,3]
[353503079,1739889070707,-500.0,0.00020176,3]
[353503080,1739889070717,-500.0,0.00020176,3]
[353503081,1739889070727,-500.0,0.00020177,3]
[353503082,1739889070736,-503.96682138,0.00020177,3]
[353503083,1739889070745,-500.0,0.0002018,3]
[353503084,1739889070758,-500.0,0.00020181,3]
[353503085,1739889070767,-500.0,0.00020189,3]
[353503086,1739889070777,-500.0,0.00020189,3]
[353503087,1739889070786,-533.16,0.00020191,3]
[353503088,1739889070795,-856262.18437169,0.00020199,40]
[353503089,1739889070827,-1786.0,0.00019348,2]
[353503090,1739889070836,-512.74875387,0.00019726,3]
[353503091,1739889070846,-500.0,0.00020176,3]
[353503092,1739889070855,-231506.23122737,0.00020199,40]
[353503093,1739889070867,-2919.43979048,0.00020199,40]
[353503094,1739889071203,-300.0,0.00018,2]
[353503095,1739889071212,-300.0,0.0001818,2]
[353503096,1739889071221,-1100.0,0.000189,6]
[353503097,1739889071231,-405.53,0.00019726,3]
[353503098,1739889071240,-507.23766719,0.00019726,3]
[353503099,1739889071250,-500.0,0.00019726,3]
[353503100,1739889071263,-500.0,0.00019726,3]
[353503101,1739889071273,-500.0,0.00019726,3]
[353503102,1739889071282,-602.46,0.00019726,3]
[353503103,1739889071292,-500.0,0.00019726,3]
[353503104,1739889071301,-500.0,0.00019726,3]
[353503105,1739889071311,-388.75,0.00019726,3]
[353503106,1739889071320,-500.0,0.00019726,3]
[353503107,1739889071329,-500.0,0.00020166,3]
[353503108,1739889071338,-500.0,0.00020176,3]
[353503109,1739889071348,-500.0,0.00020176,3]
[353503110,1739889071359,-500.0,0.00020177,3]
[353503111,1739889071372,-500.0,0.00020189,3]
[353503112,1739889071383,-500.0,0.00020189,3]
[353503113,1739889071393,-500.0,0.00020191,3]
[353503114,1739889071402,-500.0,0.00020191,3]
[353503115,1739889071412,-500.0,0.00020191,3]
[353503116,1739889071422,-500.0,0.00020191,3]
[353503117,1739889071431,-196.05,0.00020191,3]
[353503118,1739889071441,-500.0,0.00020191,3]
[353503119,1739889071450,-354.45,0.00020191,3]
[353503120,1739889071459,-29121.43807537,0.00020199,40]
[353503121,1739889071474,-684.49124998,0.00020199,40]
[353503122,1739889071499,-500.0,0.00019726,3]
[353503123,1739889071514,-500.0,0.0002019,3]
[353503124,1739889071523,-93.01192,0.00020199,40]
[353503125,1739889128250,-583.74,9.999e-05,2]
[353503126,1739889165664,177.78,8.767e-05,2]
[353503128,1739889496666,552.40399881,9.999e-05,2]
[353503135,1739890031380,1681.58121642,0.0002,120]
[353503148,1739890200752,318.54,8.767e-05,2]
[353503154,1739890231838,-200.0,0.00010774,2]
[353503155,1739890231848,-71.5,0.00011143,2]
[353503156,1739890231859,-128.5,0.00011143,2]
[353503157,1739890231869,-200.0,0.00011444,2]
[353503158,1739890231880,-62.98444757,0.00012849,2]
[353503159,1739890231891,-87.01555243,0.00012849,2]
[353503160,1739890231901,-150.0,0.000145,2]
[353503161,1739890231911,-286.52,0.00014619,2]
[353503162,1739890231924,-163.41,0.0001468,2]
[353503163,1739890231934,-1283.51259779,0.00014827,2]
[353503164,1739890231971,-716.48740221,0.00014827,2]
[353503165,1739890231980,-302.35,0.0001494,2]
[353503166,1739890231990,-151.0,0.00015251,2]
[353503167,1739890232001,-1255.52499779,0.0001526,2]
[353503168,1739890232012,-4544.47500221,0.0001526,2]
[353503169,1739890232024,-159.46,0.00015372,2]
[353503170,1739890232033,-159.34692195,0.00015389,2]
[353503171,1739890232044,-12.75307805,0.00015389,2]
[353503172,1739890232054,-154.96,0.00015412,2]
[353503173,1739890232063,-154.7995246,0.00015456,2]
[353503174,1739890232074,-345.2004754,0.00015456,2]
[353503175,1739890232084,-1101.13734053,0.000155,3]
[353503176,1739890232095,-2405.1,0.000155,3]
[353503177,1739890232149,-518.94,0.000155,3]
[353503178,1739890232161,-3710.82265947,0.000155,3]
[353503179,1739890232171,-318.54,0.00015516,2]
[353503180,1739890232180,-200.0,0.00015518,2]
[353503181,1739890232190,-166.1,0.00015799,2]
[353503182,1739890232200,-63.59694081,0.00015921,2]
[353503183,1739890232212,-272.40305919,0.00015921,2]
[353503184,1739890232221,-154.96,0.00016014,2]
[353503185,1739890232232,-336.0,0.00016085,2]
[353503187,1739890232241,-236.63694081,0.00016249,2]
[353503189,1739890232253,-99.36305919,0.00016249,2]
[353503191,1739890232262,-182.71,0.00016347,2]
[353503193,1739890232274,-15348.8054932,0.00016358,2]
[353503196,1739890232289,-382.0,0.00016358,2]
[353503198,1739890232301,-1289.92856397,0.00016358,2]
[353503219,1739890232494,-6879.26594283,0.00016358,2]
[353503221,1739890232504,-500.0,0.0001636,2]
[353503223,1739890232515,-500.0,0.0001636,2]
[353503225,1739890232525,-500.0,0.0001636,2]
[353503228,1739890232535,-2751.0,0.00016388,2]
[353503230,1739890232544,-178.0,0.00016398,2]
[353503232,1739890232553,-784.0,0.00016399,2]
[353503234,1739890232562,-908.0,0.00016399,2]
[353503235,1739890232571,-1266.0,0.00016399,2]
[353503237,1739890232581,-1874.03405717,0.00016399,2]
[353503240,1739890232592,-1190.87951664,0.00016399,2]
[353503546,1739890237684,-965.08642619,0.00016399,2]
[353503547,1739890237693,-23.89556501,0.00016399,2]
[353503548,1739890237704,-296.2850012,0.00016399,2]
[353503549,1739890237778,-218.81943379,0.00016399,2]
[353503550,1739890237788,-150.0,0.00016399,2]
[353503551,1739890237798,-200.0,0.00016399,2]
[353503552,1739890237808,-336.0,0.00016414,2]
[353503553,1739890237818,-198.3051668,0.00016538,2]
[353503554,1739890237827,-943.74422981,0.00016538,2]
[353503555,1739890237839,-282.55999991,0.00016538,2]
[353503556,1739890237850,-325.39677028,0.00016538,2]
[353503557,1739890237860,-336.0,0.00016578,2]
[353503558,1739890237869,-154.96,0.00016616,2]
[353503559,1739890237879,-608.19,0.00016658,30]
[353503560,1739890237888,-336.0,0.00016742,2]
[353503561,1739890237897,-300.0,0.00016751,2]
[353503562,1739890237906,-1000.0,0.00016814,2]
[353503563,1739890237917,-250.0,0.00016814,2]
[353503564,1739890237927,-200.981,0.00016895,2]
[353503565,1739890237936,-336.0,0.00016906,2]
[353503566,1739890237947,-302.35,0.00017203,2]
[353503567,1739890237956,-154.96,0.00017217,2]
[353503568,1739890237966,-221.0791,0.00017443,2]
[353503569,1739890237975,-150.99,0.00017728,2]
[353503570,1739890237986,-299.99,0.00017728,4]
[353503571,1739890237995,-500.0,0.0001773,2]
[353503572,1739890238004,-500.0,0.0001773,2]
[353503574,1739890238015,-154.96,0.00017819,2]
[353503576,1739890238027,-159.46,0.00017933,2]
[353503578,1739890238036,-302.0,0.00017991,2]
[353503580,1739890238046,-200.0,0.00018082,2]
[353503582,1739890238055,-300.0,0.00018121,2]
[353503583,1739890238065,-150.0,0.00018197,2]
[353503584,1739890238075,-150.0,0.00018197,2]
[353503585,1739890238084,-150.0,0.00018197,2]
[353503586,1739890238093,-152.17603003,0.00018197,2]
[353503587,1739890238103,-154.96,0.00018421,2]
[353503588,1739890238112,-500.0,0.00018826,2]
[353503589,1739890238123,-1000.0,0.000189,6]
[353503590,1739890238132,-1000.0,0.00018915,2]
[353503592,1739890238142,-2100.0,0.00019,6]
[353503594,1739890238152,-154.96,0.00019022,2]
[353503596,1739890238161,-500.0,0.000191,2]
[353503598,1739890238170,-3100.0,0.000191,6]
[353503600,1739890238179,-4200.0,0.000192,7]
[353503602,1739890238189,-608.19,0.00019242,30]
[353503604,1739890238198,-642.73896526,0.00019298,2]
[353503606,1739890238207,-5200.0,0.000193,7]
[353503608,1739890238216,-782.0,0.00019399,2]
[353503610,1739890238225,-908.0,0.00019399,2]
[353503611,1739890238234,-1266.0,0.00019399,2]
[353503613,1739890238243,-4024.0,0.00019399,2]
[353503614,1739890238252,-539.0,0.00019399,2]
[353503616,1739890238262,-1000.0,0.000194,7]
[353503618,1739890238274,-775.89,0.00019408,2]
[353503621,1739890238283,-880.0,0.00019408,2]
[353503623,1739890238293,-775.89,0.00019408,2]
[353503624,1739890238302,-642.73896525,0.00019464,2]
[353503627,1739890238312,-302.35,0.00019467,2]
[353503628,1739890238321,-1000.0,0.000195,7]
[353503630,1739890238330,-1000.0,0.000196,7]
[353503632,1739890238340,-5000.0,0.00019616,2]
[353503634,1739890238349,-154.96,0.00019624,2]
[353503636,1739890238358,-152.87389244,0.00019626,2]
[353503638,1739890238367,-329.52315419,0.00019626,2]
[353503640,1739890238375,-1000.0,0.00019626,2]
[353503642,1739890238384,-31.15753656,0.00019626,2]
[353503646,1739890238413,-163.23,0.00016399,2]
[353503648,1739890238422,-4965.26759943,0.00019626,2]
[353503650,1739890238433,-468.54598073,0.00019626,2]
[353503652,1739890238444,-949.82050932,0.00019626,2]
[353503655,1739890238459,-952.97096038,0.00019626,2]
[353503658,1739890238475,-150.0,0.00016399,2]
[353503659,1739890238483,-2867.3705605,0.00019626,2]
[353503685,1739890238707,-265.24546959,0.00019626,2]
[353503687,1739890238719,-1184.57057306,0.00019626,2]
[353503689,1739890238729,-1665.42021043,0.00019626,2]
[353503691,1739890238739,-813.50004914,0.00019626,2]
[353503694,1739890238750,-1424.195,0.00019626,2]
[353503831,1739890239968,-150.0,0.00019399,2]
[353503833,1739890239979,-10446.84369967,0.00019626,2]
[353503835,1739890239989,-2112.45135453,0.00019626,2]
[353503837,1739890240000,-3131.55501993,0.00019626,2]
[353503839,1739890240012,-2378.73847297,0.00019626,2]
[353503840,1739890240075,-38091.16000376,0.00019626,2]
[353503841,1739890240084,-642.73896525,0.0001963,2]
[353503843,1739890240094,-301.24368667,0.0001967,2]
[353503845,1739890240104,-3000.0,0.000197,2]
[353503847,1739890240114,-1000.0,0.000197,7]
[353503849,1739890240123,-37302.097514,0.00019706,3]
[353503851,1739890240132,-152.87389242,0.00019713,2]
[353503853,1739890240145,-1309.08,0.00019725,2]
[353503855,1739890240153,-500.0,0.00019725,2]
[353503857,1739890240162,-249.38796785,0.00019725,2]
[353503859,1739890240171,-500.0,0.00019726,3]
[353503861,1739890240181,-500.0,0.00019726,3]
[353503863,1739890240190,-500.0,0.00019726,3]
[353503865,1739890240199,-500.0,0.00019726,3]
[353503867,1739890240208,-511.2519213,0.00019726,3]
[353503869,1739890240217,-507.26460887,0.00019726,3]
[353503871,1739890240226,-500.0,0.00019726,3]
[353503873,1739890240235,-500.0,0.00019726,3]
[353503875,1739890240244,-500.0,0.00019726,3]
[353503877,1739890240253,-500.0,0.00019726,3]
[353503879,1739890240262,-244.75540997,0.00019726,3]
[353503881,1739890240273,-500.0,0.00019726,3]
[353503883,1739890240282,-500.0,0.00019726,3]
[353503885,1739890240291,-247.35917556,0.00019726,3]
[353503887,1739890240300,-500.0,0.00019726,3]
[353503889,1739890240309,-500.0,0.00019726,3]
[353503891,1739890240318,-500.0,0.00019726,3]
[353503893,1739890240327,-500.0,0.00019726,3]
[353503895,1739890240336,-500.0,0.00019726,3]
[353503897,1739890240345,-500.0,0.00019726,3]
[353503899,1739890240354,-500.0,0.00019726,3]
[353503901,1739890240362,-500.0,0.00019726,3]
[353503903,1739890240372,-500.0,0.00019726,3]
[353503905,1739890240381,-500.0,0.00019726,3]
[353503907,1739890240390,-500.0,0.00019726,3]
[353503909,1739890240399,-500.0,0.00019726,3]
[353503910,1739890240408,-500.0,0.00019726,3]
[353503912,1739890240417,-500.0,0.00019726,3]
[353503915,1739890240427,-500.0,0.00019726,3]
[353503917,1739890240437,-500.0,0.00019726,3]
[353503918,1739890240446,-500.0,0.00019726,3]
[353503921,1739890240456,-500.0,0.00019726,3]
[353503922,1739890240466,-500.0,0.00019726,3]
[353503924,1739890240475,-500.0,0.00019726,3]
[353503927,1739890240484,-500.0,0.00019726,3]
[353503928,1739890240494,-500.0,0.00019726,3]
[353503930,1739890240503,-500.0,0.00019726,3]
[353503933,1739890240512,-500.0,0.00019726,3]
[353503935,1739890240523,-500.0,0.00019726,3]
[353503937,1739890240532,-500.0,0.00019726,3]
[353503939,1739890240542,-500.0,0.00019726,3]
[353503940,1739890240551,-500.0,0.00019726,3]
[353503942,1739890240561,-500.0,0.00019726,3]
[353503945,1739890240570,-500.0,0.00019726,3]
[353503947,1739890240579,-500.0,0.00019726,3]
[353503949,1739890240588,-503.02388427,0.00019726,3]
[353503950,1739890240597,-500.0,0.00019726,3]
[353503952,1739890240606,-500.0,0.00019726,3]
[353503954,1739890240615,-500.0,0.00019726,3]
[353503956,1739890240624,-500.0,0.00019726,3]
[353503958,1739890240634,-500.0,0.00019726,3]
[353503960,1739890240643,-500.0,0.00019726,3]
[353503962,1739890240652,-500.0,0.00019726,3]
[353503964,1739890240661,-500.0,0.00019726,3]
[353503966,1739890240671,-500.0,0.00019726,3]
[353503968,1739890240679,-500.0,0.00019726,3]
[353503970,1739890240688,-510.04417741,0.00019726,3]
[353503972,1739890240697,-500.0,0.00019726,3]
[353503974,1739890240706,-320.39440139,0.00019726,3]
[353503976,1739890240715,-500.0,0.00019726,3]
[353503978,1739890240724,-500.0,0.00019726,3]
[353503980,1739890240734,-500.0,0.00019726,3]
[353503982,1739890240743,-500.0,0.00019726,3]
[353503984,1739890240752,-500.0,0.00019726,3]
[353503986,1739890240761,-500.0,0.00019726,3]
[353503988,1739890240771,-477.09265186,0.00019726,3]
[353503990,1739890240780,-500.0,0.00019726,3]
[353503992,1739890240789,-500.0,0.00019726,3]
[353503994,1739890240798,-500.0,0.00019726,3]
[353503996,1739890240807,-500.0,0.00019726,3]
[353503998,1739890240816,-357.3,0.00019726,3]
[353504000,1739890240825,-500.0,0.00019726,3]
[353504002,1739890240834,-500.0,0.00019726,3]
[353504004,1739890240844,-500.0,0.00019726,3]
[353504006,1739890240853,-500.0,0.00019726,3]
[353504008,1739890240862,-500.0,0.00019726,3]
[353504010,1739890240871,-500.0,0.00019726,3]
[353504012,1739890240880,-514.54566856,0.00019726,3]
[353504014,1739890240889,-500.0,0.00019726,3]
[353504016,1739890240898,-500.0,0.00019726,3]
[353504018,1739890240907,-500.0,0.00019726,3]
[353504020,1739890240920,-500.0,0.00019726,3]
[353504022,1739890240929,-500.0,0.00019726,3]
[353504024,1739890240938,-500.0,0.00019726,3]
[353504026,1739890240947,-500.0,0.00019726,3]
[353504027,1739890240956,-500.0,0.00019726,3]
[353504028,1739890240967,-500.0,0.00019726,3]
[353504029,1739890240976,-500.0,0.00019726,3]
[353504030,1739890240986,-500.0,0.00019726,3]
[353504032,1739890240995,-500.0,0.00019726,3]
[353504050,1739890241169,-508.78980059,0.00019726,3]
[353504052,1739890241179,-500.0,0.00019726,3]
[353504054,1739890241188,-500.0,0.00019726,3]
[353504056,1739890241198,-499.73576259,0.00019726,3]
[353504058,1739890241207,-500.0,0.00019726,3]
[353504060,1739890241217,-510.783905,0.00019726,3]
[353504062,1739890241226,-500.0,0.00019726,3]
[353504064,1739890241236,-432.86159142,0.00019726,3]
[353504066,1739890241245,-500.0,0.00019726,3]
[353504068,1739890241254,-500.0,0.00019726,3]
[353504070,1739890241263,-500.0,0.00019726,3]
[353504072,1739890241274,-500.0,0.00019726,3]
[353504074,1739890241283,-500.0,0.00019726,3]
[353504076,1739890241292,-500.0,0.00019726,3]
[353504078,1739890241301,-500.0,0.00019726,3]
[353504080,1739890241310,-500.0,0.00019726,3]
[353504082,1739890241319,-500.0,0.00019726,3]
[353504084,1739890241328,-500.0,0.00019726,3]
[353504086,1739890241337,-500.0,0.00019726,3]
[353504087,1739890241346,-500.0,0.00019726,3]
[353504089,1739890241355,-508.85936725,0.00019726,3]
[353504091,1739890241365,-500.0,0.00019726,3]
[353504093,1739890241374,-500.0,0.00019726,3]
[353504095,1739890241383,-500.0,0.00019726,3]
[353504096,1739890241392,-500.0,0.00019726,3]
[353504097,1739890241401,-500.0,0.00019726,3]
[353504098,1739890241410,-235.58,0.00019726,3]
[353504099,1739890241419,-500.0,0.00019726,3]
[353504100,1739890241428,-515.92148815,0.00019726,3]
[353504101,1739890241439,-500.0,0.00019726,3]
[353504102,1739890241448,-500.0,0.00019726,3]
[353504103,1739890241457,-500.0,0.00019726,3]
[353504104,1739890241466,-507.83711668,0.00019726,3]
[353504105,1739890241475,-500.0,0.00019726,3]
[353504106,1739890241484,-500.0,0.00019726,3]
[353504107,1739890241493,-500.0,0.00019726,3]
[353504108,1739890241503,-500.0,0.00019726,3]
[353504109,1739890241511,-500.0,0.00019726,3]
[353504110,1739890241520,-500.0,0.00019726,3]
[353504111,1739890241531,-594.62,0.00019726,3]
[353504112,1739890241541,-500.0,0.00019726,3]
[353504113,1739890241550,-500.0,0.00019726,3]
[353504114,1739890241559,-500.0,0.00019726,3]
[353504115,1739890241568,-500.0,0.00019726,3]
[353504116,1739890241577,-257.83,0.00019726,3]
[353504117,1739890241586,-518.11389333,0.00019726,3]
[353504118,1739890241595,-500.0,0.00019726,3]
[353504119,1739890241604,-500.0,0.00019726,3]
[353504120,1739890241613,-494.86143416,0.00019726,3]
[353504121,1739890241623,-500.0,0.00019726,3]
[353504122,1739890241632,-500.0,0.00019726,3]
[353504123,1739890241641,-500.0,0.00019726,3]
[353504124,1739890241651,-500.0,0.00019726,3]
[353504125,1739890241661,-500.0,0.00019726,3]
[353504126,1739890241670,-502.15374585,0.00019726,3]
[353504127,1739890241679,-500.0,0.00019726,3]
[353504128,1739890241688,-500.0,0.00019726,3]
[353504129,1739890241697,-500.0,0.00019726,3]
[353504130,1739890241707,-500.0,0.00019726,3]
[353504131,1739890241716,-531.85,0.00019726,3]
[353504132,1739890241725,-333.3,0.00019726,3]
[353504133,1739890241734,-500.0,0.00019726,3]
[353504134,1739890241744,-500.0,0.00019726,3]
[353504135,1739890241753,-500.0,0.00019726,3]
[353504136,1739890241762,-500.0,0.00019726,3]
[353504137,1739890241774,-500.0,0.00019726,3]
[353504138,1739890241783,-500.0,0.00019726,3]
[353504139,1739890241792,-182.55974415,0.00019726,3]
[353504140,1739890241801,-500.0,0.00019726,3]
[353504141,1739890241811,-500.0,0.00019726,3]
[353504142,1739890241820,-500.0,0.00019726,3]
[353504143,1739890241830,-500.0,0.00019726,3]
[353504144,1739890241839,-500.0,0.00019726,3]
[353504145,1739890241849,-500.0,0.00019726,3]
[353504146,1739890241859,-500.0,0.00019726,3]
[353504147,1739890241868,-500.0,0.00019726,3]
[353504148,1739890241877,-500.0,0.00019726,3]
[353504149,1739890241887,-500.0,0.00019726,3]
[353504150,1739890241896,-500.0,0.00019726,3]
[353504151,1739890241906,-516.7692731,0.00019726,3]
[353504152,1739890241916,-500.0,0.00019726,3]
[353504153,1739890241926,-500.0,0.00019726,3]
[353504154,1739890241935,-500.0,0.00019726,3]
[353504155,1739890241949,-440.99713313,0.00019726,3]
[353504156,1739890241958,-505.7330779,0.00019726,3]
[353504157,1739890241968,-530.91798109,0.00019726,3]